lending/lending_fUSD_20240509
["ID","MTS","AMOUNT","RATE_DAILY","PERIOD"]
[326744701,1715297450550,-500.0,0.00030136,4]
[326744702,1715297450559,-151.0,0.00030136,7]
[326744703,1715297450568,-1012.3,0.00030136,4]
[326744704,1715297450577,-500.0,0.00030136,4]
[326744705,1715297450586,-151.0,0.00030136,7]
[326744706,1715297450595,-500.0,0.00030136,4]
[326744707,1715297450604,-500.0,0.00030136,4]
[326744708,1715297450614,-299.659108,0.00030136,5]
[326744709,1715297450623,-500.0,0.00030136,4]
[326744710,1715297450633,-151.0,0.00030136,7]
[326744711,1715297450643,-4646.17,0.00030136,4]
[326744712,1715297450652,-500.0,0.00030136,4]
[326744713,1715297450661,-1356.54,0.00030136,4]
[326744714,1715297450671,-510.16643054,0.00030136,4]
[326744715,1715297450680,-599.25,0.00030136,4]
[326744716,1715297450689,-42011.28,0.00030136,4]
[326744717,1715297450698,-500.0,0.00030136,4]
[326744718,1715297450707,-151.0,0.00030136,7]
[326744719,1715297450716,-500.0,0.00030136,4]
[326744720,1715297450725,-500.0,0.00030136,4]
[326744721,1715297450734,-500.0,0.00030136,4]
[326744722,1715297450743,-807.72,0.00030136,4]
[326744723,1715297450752,-2159.75,0.00030136,4]
[326744724,1715297450762,-4089.52,0.00030136,4]
[326744725,1715297450771,-9288.02,0.00030136,4]
[326744726,1715297450780,-151.0,0.00030136,7]
[326744727,1715297450789,-500.0,0.00030136,4]
[326744728,1715297450798,-1792.62,0.00030136,4]
[326744729,1715297450806,-3984.95,0.00030136,4]
[326744730,1715297450815,-2610.89,0.00030136,4]
[326744731,1715297450824,-2083.25,0.00030136,4]
[326744732,1715297450833,-1682.1,0.00030136,4]
[326744733,1715297450842,-500.0,0.00030136,4]
[326744734,1715297450851,-500.0,0.00030136,4]
[326744735,1715297450860,-661.9,0.00030136,4]
[326744736,1715297450869,-24129.0,0.00030136,4]
[326744737,1715297450878,-4279.15,0.00030136,4]
[326744738,1715297450887,-500.0,0.00030136,4]
[326744739,1715297450898,-151.0,0.00030136,7]
[326744740,1715297450907,-8213.78,0.00030136,4]
[326744741,1715297450916,-500.0,0.00030136,4]
[326744742,1715297450925,-500.0,0.00030136,4]
[326744743,1715297450934,-431.93928391,0.00030136,4]
[326744744,1715297450943,-500.0,0.00030136,4]
[326744745,1715297450953,-5534.17,0.00030136,4]
[326744746,1715297450961,-500.0,0.00030136,4]
[326744747,1715297450970,-2664.73,0.00030136,4]
[326744748,1715297450979,-1539.92,0.00030136,4]
[326744749,1715297450987,-3697.77,0.00030136,4]
[326744750,1715297450996,-500.0,0.00030136,4]
[326744751,1715297451009,-1284.31,0.00030136,4]
[326744752,1715297451019,-588.11,0.00030136,4]
[326744753,1715297451029,-500.0,0.00030136,4]
[326744754,1715297451037,-525.3,0.00030136,4]
[326744755,1715297451048,-151.0,0.00030136,7]
[326744756,1715297451058,-151.0,0.00030136,7]
[326744757,1715297451067,-500.0,0.00030136,4]
[326744758,1715297451075,-822.54,0.00030136,4]
[326744759,1715297451084,-1445.3,0.00030136,4]
[326744760,1715297451095,-877.33,0.00030136,4]
[326744761,1715297451104,-500.0,0.00030136,4]
[326744762,1715297451113,-500.0,0.00030136,4]
[326744763,1715297451122,-1652.71,0.00030136,4]
[326744764,1715297451131,-786.29,0.00030136,4]
[326744765,1715297451141,-2865.81,0.00030136,4]
[326744766,1715297451150,-6791.83,0.00030136,4]
[326744767,1715297451159,-500.0,0.00030136,4]
[326744768,1715297451167,-1044.27,0.00030136,4]
[326744769,1715297451176,-607.05,0.00030136,4]
[326744770,1715297451186,-2796.61,0.00030136,4]
[326744771,1715297451195,-7951.88,0.00030136,4]
[326744772,1715297451204,-479.58714947,0.00030136,4]
[326744773,1715297451213,-580.39047406,0.00030136,4]
[326744774,1715297451222,-1471.75,0.00030136,4]
[326744775,1715297451231,-965.16,0.00030136,4]
[326744776,1715297451240,-895.97,0.00030136,4]
[326744777,1715297451249,-500.0,0.00030136,4]
[326744778,1715297451259,-500.0,0.00030136,4]
[326744779,1715297451268,-500.0,0.00030136,4]
[326744780,1715297451277,-4048.03,0.00030136,4]
[326744781,1715297451286,-500.0,0.00030136,4]
[326744782,1715297451295,-3111.48,0.00030136,4]
[326744783,1715297451303,-3260.6,0.00030136,4]
[326744784,1715297451312,-500.0,0.00030136,4]
[326744785,1715297451321,-3705.69,0.00030136,4]
[326744786,1715297451330,-9821.44,0.00030136,4]
[326744787,1715297451340,-3885.62,0.00030136,4]
[326744788,1715297451349,-2000.5,0.00030136,4]
[326744789,1715297451358,-500.0,0.00030136,4]
[326744790,1715297451367,-550.32293967,0.00030136,4]
[326744791,1715297451376,-1184.08,0.00030136,4]
[326744792,1715297451385,-500.0,0.00030136,4]
[326744793,1715297451394,-859.51,0.00030136,4]
[326744794,1715297451403,-151.0,0.00030136,7]
[326744795,1715297451412,-3407.17,0.00030136,4]
[326744796,1715297451421,-151.0,0.00030136,7]
[326744797,1715297451430,-3424.17,0.00030136,4]
[326744798,1715297451439,-500.0,0.00030136,4]
[326744799,1715297451448,-500.0,0.00030136,4]
[326744800,1715297451457,-500.0,0.00030136,4]
[326744801,1715297451467,-2905.29,0.00030136,4]
[326744802,1715297451476,-151.962472,0.00030136,7]
[326744803,1715297451485,-1243.9,0.00030136,4]
[326744804,1715297451495,-500.0,0.00030136,4]
[326744805,1715297451505,-151.0,0.00030136,7]
[326744806,1715297451514,-151.0,0.00030136,7]
[326744807,1715297451523,-4070.47,0.00030136,4]
[326744808,1715297451532,-17571.32,0.00030136,4]
[326744809,1715297451541,-500.0,0.00030136,4]
[326744810,1715297451551,-500.0,0.00030136,4]
[326744811,1715297451560,-1205.11,0.00030136,4]
[326744812,1715297451569,-6018.88,0.00030136,4]
[326744813,1715297451578,-500.0,0.00030136,4]
[326744814,1715297451587,-151.0,0.00030136,7]
[326744815,1715297451596,-500.0,0.00030136,4]
[326744816,1715297451605,-7657.45,0.00030136,4]
[326744817,1715297451614,-1297.36,0.00030136,4]
[326744818,1715297451623,-500.0,0.00030136,4]
[326744819,1715297451632,-500.0,0.00030136,4]
[326744820,1715297451641,-761.01,0.00030136,4]
[326744821,1715297451650,-500.0,0.00030136,4]
[326744822,1715297451659,-151.0,0.00030136,7]
[326744823,1715297451667,-151.0,0.00030136,7]
[326744824,1715297451676,-1931.16,0.00030136,4]
[326744825,1715297451685,-500.0,0.00030136,4]
[326744826,1715297451694,-3820.67,0.00030136,4]
[326744827,1715297451704,-500.0,0.00030136,4]
[326744828,1715297451713,-11526.79,0.00030136,4]
[326744829,1715297451722,-515.62,0.00030136,4]
[326744830,1715297451731,-1422.49,0.00030136,4]
[326744831,1715297451740,-500.0,0.00030136,4]
[326744832,1715297451749,-11636.5,0.00030136,4]
[326744833,1715297451759,-3441.16,0.00030136,4]
[326744834,1715297451768,-151.0,0.00030136,7]
[326744835,1715297451778,-500.0,0.00030136,4]
[326744836,1715297451787,-151.0,0.00030136,7]
[326744837,1715297451796,-151.0,0.00030136,7]
[326744838,1715297451806,-1992.01,0.00030136,4]
[326744839,1715297451815,-151.0,0.00030136,7]
[326744840,1715297451824,-958.86,0.00030136,4]
[326744841,1715297451834,-500.0,0.00030136,4]
[326744842,1715297451843,-500.0,0.00030136,4]
[326744843,1715297451853,-2698.47,0.00030136,4]
[326744844,1715297451862,-152.139386,0.00030136,7]
[326744845,1715297451871,-500.0,0.00030136,4]
[326744846,1715297451881,-2881.9001182,0.00030136,2]
[326744847,1715297451890,-2712.53,0.00030136,4]
[326744848,1715297451900,-2513.83,0.00030136,4]
[326744849,1715297451909,-151.0,0.00030136,7]
[326744850,1715297451918,-3209.81,0.00030136,4]
[326744851,1715297451927,-157.973614,0.00030136,7]
[326744852,1715297451936,-151.0,0.00030136,7]
[326744853,1715297451946,-1524.4,0.00030136,4]
[326744854,1715297451955,-151.0,0.00030136,7]
[326744855,1715297451964,-506.32349668,0.00030136,4]
[326744856,1715297451975,-500.0,0.00030136,4]
[326744857,1715297451986,-771.73,0.00030136,4]
[326744858,1715297451995,-154.594053,0.00030136,7]
[326744859,1715297452006,-500.0,0.00030136,4]
[326744860,1715297452019,-1891.66,0.00030136,4]
[326744861,1715297452029,-2089.49,0.00030136,4]
[326744862,1715297452039,-4269.46,0.00030136,4]
[326744863,1715297452051,-2084.1,0.00030136,4]
[326744864,1715297452061,-500.0,0.00030136,4]
[326744865,1715297452070,-556.85647417,0.00030136,4]
[326744866,1715297452082,-500.0,0.00030136,4]
[326744867,1715297452094,-2378.27,0.00030136,4]
[326744868,1715297452106,-50507.86,0.00030136,4]
[326744869,1715297452118,-15302.95,0.00030136,4]
[326744870,1715297452128,-552.9,0.00030136,4]
[326744871,1715297452140,-500.0,0.00030136,4]
[326744872,1715297452150,-151.0,0.00030136,7]
[326744873,1715297452161,-151.0,0.00030136,7]
[326744874,1715297452171,-500.0,0.00030136,4]
[326744875,1715297452181,-500.0,0.00030136,4]
[326744876,1715297452190,-500.0,0.00030136,4]
[326744877,1715297452201,-152.618665,0.00030136,7]
[326744878,1715297452211,-500.0,0.00030136,4]
[326744879,1715297452222,-697.09,0.00030136,4]
[326744880,1715297452232,-509.79,0.00030136,4]
[326744881,1715297452243,-507.62,0.00030136,4]
[326744882,1715297452254,-1916.07,0.00030136,4]
[326744883,1715297452263,-1022.8,0.00030136,4]
[326744884,1715297452272,-1810.67,0.00030136,4]
[326744885,1715297452281,-827.45,0.00030136,4]
[326744886,1715297452290,-23960.66,0.00030136,4]
[326744887,1715297452301,-151.0,0.00030136,7]
[326744888,1715297452311,-506.19963109,0.00030136,4]
[326744889,1715297452322,-151.0,0.00030136,7]
[326744890,1715297452332,-1548.17,0.00030136,4]
[326744891,1715297452342,-500.0,0.00030136,4]
[326744892,1715297452352,-776.59,0.00030136,4]
[326744893,1715297452361,-500.0,0.00030136,4]
[326744894,1715297452371,-921.62,0.00030136,4]
[326744895,1715297452381,-831.85,0.00030136,4]
[326744896,1715297452390,-4201.18,0.00030136,4]
[326744897,1715297452399,-500.0,0.00030136,4]
[326744898,1715297452409,-1268.68,0.00030136,4]
[326744899,1715297452418,-500.0,0.00030136,4]
[326744900,1715297452428,-2661.61,0.00030136,4]
[326744901,1715297452438,-500.0,0.00030136,4]
[326744902,1715297452447,-883.21,0.00030136,4]
[326744903,1715297452457,-604.81,0.00030136,4]
[326744904,1715297452466,-2870.33,0.00030136,4]
[326744905,1715297452476,-500.0,0.00030136,4]
[326744906,1715297452486,-2895.77,0.00030136,4]
[326744907,1715297452495,-151.0,0.00030136,7]
[326744908,1715297452506,-2751.49,0.00030136,4]
[326744909,1715297452516,-1548.06,0.00030136,4]
[326744910,1715297452526,-2145.57,0.00030136,4]
[326744911,1715297452535,-502.80063511,0.00030136,4]
[326744912,1715297452545,-4417.39,0.00030136,4]
[326744913,1715297452555,-500.0,0.00030136,4]
[326744914,1715297452565,-520.06709658,0.00030136,4]
[326744915,1715297452574,-500.0,0.00030136,4]
[326744916,1715297452584,-1081.29,0.00030136,4]
[326744917,1715297452593,-566.73293485,0.00030136,4]
[326744918,1715297452603,-1059.72,0.00030136,4]
[326744919,1715297452613,-1560.23,0.00030136,4]
[326744920,1715297452622,-1385.06,0.00030136,4]
[326744921,1715297452632,-3573.92,0.00030136,4]
[326744922,1715297452642,-3784.22,0.00030136,4]
[326744923,1715297452651,-588.39,0.00030136,4]
[326744924,1715297452660,-20009.53,0.00030136,4]
[326744925,1715297452670,-151.0,0.00030136,7]
[326744926,1715297452679,-2138.97,0.00030136,4]
[326744927,1715297452689,-826.85,0.00030136,4]
[326744928,1715297452698,-500.0,0.00030136,4]
[326744929,1715297452708,-1271.3,0.00030136,4]
[326744930,1715297452717,-500.0,0.00030136,4]
[326744931,1715297452726,-583.57061454,0.00030136,4]
[326744932,1715297452736,-2995.03,0.00030136,4]
[326744933,1715297452745,-954.9,0.00030136,4]
[326744934,1715297452757,-3258.26,0.00030136,4]
[326744935,1715297452768,-1150.69,0.00030136,4]
[326744936,1715297452778,-1439.66,0.00030136,4]
[326744937,1715297452788,-3200.62,0.00030136,4]
[326744938,1715297452797,-500.0,0.00030136,4]
[326744939,1715297452807,-653.8,0.00030136,4]
[326744940,1715297452816,-851.94,0.00030136,4]
[326744941,1715297452826,-500.0,0.00030136,4]
[326744942,1715297452836,-1486.95,0.00030136,4]
[326744943,1715297452845,-910.6,0.00030136,4]
[326744944,1715297452855,-1343.14,0.00030136,4]
[326744945,1715297452865,-11644.59,0.00030136,4]
[326744946,1715297452875,-6123.7,0.00030136,4]
[326744947,1715297452885,-8892.3,0.00030136,4]
[326744948,1715297452894,-2737.43,0.00030136,4]
[326744949,1715297452904,-3321.03,0.00030136,4]
[326744950,1715297452914,-1488.49,0.00030136,4]
[326744951,1715297452924,-4295.29,0.00030136,4]
[326744952,1715297452933,-500.0,0.00030136,4]
[326744953,1715297452943,-500.0,0.00030136,4]
[326744954,1715297452953,-1794.62,0.00030136,4]
[326744955,1715297452962,-500.0,0.00030136,4]
[326744956,1715297452972,-500.0,0.00030136,4]
[326744957,1715297452981,-151.0,0.00030136,7]
[326744958,1715297452991,-500.0,0.00030136,4]
[326744959,1715297453000,-500.0,0.00030136,4]
[326744960,1715297453019,-1745.83,0.00030136,4]
[326744961,1715297453031,-500.0,0.00030136,4]
[326744962,1715297453040,-6047.49,0.00030136,4]
[326744963,1715297453053,-3941.16,0.00030136,4]
[326744964,1715297453063,-564.56,0.00030136,4]
[326744965,1715297453072,-500.0,0.00030136,4]
[326744966,1715297453081,-525.22,0.00030136,4]
[326744967,1715297453091,-556.15,0.00030136,4]
[326744968,1715297453101,-2148.08,0.00030136,4]
[326744969,1715297453111,-3777.52,0.00030136,4]
[326744970,1715297453121,-2104.13,0.00030136,4]
[326744971,1715297453130,-500.0,0.00030136,4]
[326744972,1715297453140,-500.0,0.00030136,4]
[326744973,1715297453150,-4559.13,0.00030136,4]
[326744974,1715297453160,-3083.73,0.00030136,4]
[326744975,1715297453169,-500.0,0.00030136,4]
[326744976,1715297453179,-2853.51,0.00030136,4]
[326744977,1715297453188,-500.0,0.00030136,4]
[326744978,1715297453198,-2549.11,0.00030136,4]
[326744979,1715297453207,-793.12,0.00030136,4]
[326744980,1715297453217,-708.34,0.00030136,4]
[326744981,1715297453226,-500.0,0.00030136,4]
[326744982,1715297453236,-3052.4,0.00030136,4]
[326744983,1715297453245,-500.0,0.00030136,4]
[326744984,1715297453257,-500.0,0.00030136,4]
[326744985,1715297453266,-529.455136,0.00030136,7]
[326744986,1715297453276,-500.0,0.00030136,4]
[326744987,1715297453286,-1377.13,0.00030136,4]
[326744988,1715297453295,-529.455136,0.00030136,7]
[326744989,1715297453305,-801.06,0.00030136,4]
[326744990,1715297453314,-500.0,0.00030136,4]
[326744991,1715297453324,-3880.41,0.00030136,4]
[326744992,1715297453333,-500.0,0.00030136,4]
[326744993,1715297453343,-500.0,0.00030136,4]
[326744994,1715297453353,-668.46,0.00030136,4]
[326744995,1715297453363,-8984.56,0.00030136,4]
[326744996,1715297453373,-3733.89,0.00030136,4]
[326744997,1715297453382,-151.0,0.00030136,7]
[326744998,1715297453392,-529.455136,0.00030136,7]
[326744999,1715297453402,-529.455136,0.00030136,7]
[326745000,1715297453412,-151.0,0.00030136,7]
[326745001,1715297453422,-5522.35,0.00030136,4]
[326745002,1715297453433,-500.0,0.00030136,4]
[326745003,1715297453443,-500.0,0.00030136,4]
[326745004,1715297453454,-500.0,0.00030136,4]
[326745005,1715297453463,-500.0,0.00030136,4]
[326745006,1715297453474,-5000.0,0.00030136,4]
[326745007,1715297453483,-2141.08,0.00030136,4]
[326745008,1715297453494,-500.0,0.00030136,4]
[326745009,1715297453503,-982.37,0.00030136,4]
[326745010,1715297453514,-500.0,0.00030136,4]
[326745011,1715297453524,-500.0,0.00030136,4]
[326745012,1715297453533,-506.93475023,0.00030136,4]
[326745013,1715297453542,-500.0,0.00030136,4]
[326745014,1715297453552,-151.0,0.00030136,7]
[326745015,1715297453562,-500.0,0.00030136,4]
[326745016,1715297453575,-500.0,0.00030136,4]
[326745017,1715297453585,-500.0,0.00030136,4]
[326745018,1715297453594,-5495.97,0.00030136,4]
[326745019,1715297453603,-2161.21,0.00030136,4]
[326745020,1715297453613,-2823.7,0.00030136,4]
[326745021,1715297453623,-2898.53,0.00030136,4]
[326745022,1715297453632,-173.213968,0.00030136,7]
[326745023,1715297453642,-173.213968,0.00030136,7]
[326745024,1715297453651,-3562.78,0.00030136,4]
[326745025,1715297453661,-953.67,0.00030136,2]
[326745026,1715297453670,-500.0,0.00030136,4]
[326745027,1715297453679,-671.81,0.00030136,4]
[326745028,1715297453688,-5243.76,0.00030136,4]
[326745029,1715297453698,-500.0,0.00030136,4]
[326745030,1715297453707,-173.213968,0.00030136,7]
[326745031,1715297453716,-173.213968,0.00030136,7]
[326745032,1715297453726,-1489.35,0.00030136,4]
[326745033,1715297453735,-829.6,0.00030136,4]
[326745034,1715297453745,-5954.43,0.00030136,4]
[326745035,1715297453756,-950.25,0.00030136,4]
[326745036,1715297453765,-500.0,0.00030136,4]
[326745037,1715297453775,-1331.07,0.00030136,4]
[326745038,1715297453784,-4151.56,0.00030136,4]
[326745039,1715297453794,-500.0,0.00030136,4]
[326745040,1715297453803,-500.0,0.00030136,4]
[326745041,1715297453813,-3540.19,0.00030136,4]
[326745042,1715297453822,-2417.55,0.00030136,4]
[326745043,1715297453831,-2044.42,0.00030136,4]
[326745044,1715297453841,-500.0,0.00030136,4]
[326745045,1715297453850,-544.85,0.00030136,4]
[326745046,1715297453859,-3592.67,0.00030136,4]
[326745047,1715297453869,-151.0,0.00030136,7]
[326745048,1715297453878,-151.0,0.00030136,7]
[326745049,1715297453888,-679.46,0.00030136,4]
[326745050,1715297453897,-500.0,0.00030136,4]
[326745051,1715297453907,-553.68,0.00030136,4]
[326745052,1715297453916,-151.826439,0.00030136,7]
[326745053,1715297453926,-500.0,0.00030136,4]
[326745054,1715297453935,-151.0,0.00030136,7]
[326745055,1715297453945,-1001.19,0.00030136,4]
[326745056,1715297453954,-151.0,0.00030136,7]
[326745057,1715297453964,-1776.59,0.00030136,4]
[326745058,1715297453973,-9015.09,0.00030136,4]
[326745059,1715297453983,-2032.37,0.00030136,4]
[326745060,1715297454269,-3304.47,0.00030136,4]
[326745061,1715297454281,-2006.08,0.00030136,4]
[326745062,1715297454290,-648.89,0.00030136,4]
[326745063,1715297454299,-1587.1,0.00030136,4]
[326745064,1715297454308,-500.0,0.00030136,4]
[326745065,1715297454318,-500.0,0.00030136,4]
[326745066,1715297454327,-500.0,0.00030136,4]
[326745067,1715297454337,-526.4,0.00030136,4]
[326745068,1715297454346,-730.89,0.00030136,4]
[326745069,1715297454355,-881.2,0.00030136,4]
[326745070,1715297454365,-500.0,0.00030136,4]
[326745071,1715297454374,-1138.73,0.00030136,4]
[326745072,1715297454384,-1489.69,0.00030136,4]
[326745073,1715297454393,-2476.24,0.00030136,4]
[326745074,1715297454403,-629.29,0.00030136,4]
[326745075,1715297454412,-1022.1,0.00030136,4]
[326745076,1715297454421,-607.43,0.00030136,4]
[326745077,1715297454431,-500.0,0.00030136,4]
[326745078,1715297454440,-3868.06,0.00030136,4]
[326745079,1715297454450,-856.6,0.00030136,4]
[326745080,1715297454459,-792.83,0.00030136,4]
[326745081,1715297454469,-33230.34,0.00030136,4]
[326745082,1715297454478,-500.0,0.00030136,4]
[326745083,1715297454487,-500.0,0.00030136,2]
[326745084,1715297454497,-2849.26,0.00030136,4]
[326745085,1715297454506,-1205.19,0.00030136,4]
[326745086,1715297454516,-5048.73,0.00030136,4]
[326745087,1715297454525,-517.84,0.00030136,4]
[326745088,1715297454535,-8710.02,0.00030136,4]
[326745089,1715297454544,-500.0,0.00030136,4]
[326745090,1715297454554,-1250.08,0.00030136,4]
[326745091,1715297454563,-500.0,0.00030136,4]
[326745092,1715297454572,-1225.18,0.00030136,2]
[326745093,1715297454582,-507.95745,0.00030136,7]
[326745094,1715297454592,-151.0,0.00030136,7]
[326745095,1715297454601,-151.0,0.00030136,7]
[326745096,1715297454611,-538.5,0.00030136,4]
[326745097,1715297454621,-151.0,0.00030136,7]
[326745098,1715297454631,-500.0,0.00030136,4]
[326745099,1715297454640,-10603.2,0.00030136,4]
[326745100,1715297454652,-500.0,0.00030136,4]
[326745101,1715297454661,-3027.71,0.00030136,4]
[326745102,1715297454670,-500.0,0.00030136,4]
[326745103,1715297454679,-1501.45,0.00030136,4]
[326745104,1715297454689,-500.0,0.00030136,4]
[326745105,1715297454698,-1501.45,0.00030136,4]
[326745106,1715297454708,-536.78,0.00030136,4]
[326745107,1715297454718,-1271.84,0.00030136,4]
[326745108,1715297454728,-500.0,0.00030136,4]
[326745109,1715297454737,-500.0,0.00030136,4]
[326745110,1715297454747,-1554.96,0.00030136,4]
[326745111,1715297454757,-1501.45,0.00030136,4]
[326745112,1715297454766,-500.0,0.00030136,4]
[326745113,1715297454775,-1501.45,0.00030136,4]
[326745114,1715297454784,-500.0,0.00030136,4]
[326745115,1715297454794,-500.0,0.00030136,4]
[326745116,1715297454803,-1501.62506511,0.00030136,4]
[326745117,1715297454812,-150.0,0.00030145,2]
[326745118,1715297454822,-200.0,0.00030157,7]
[326745119,1715297454831,-150.0,0.00030162,2]
[326745120,1715297454840,-159.80777229,0.00030172,2]
[326745121,1715297454849,-150.0,0.00030181,2]
[326745122,1715297454859,-150.0,0.00030189,2]
[326745123,1715297454869,-157.051007,0.00030198,30]
[326745124,1715297454878,-875.314559,0.000302,2]
[326745125,1715297454888,-908.26,0.000302,2]
[326745126,1715297454897,-1008.14,0.000302,2]
[326745127,1715297454908,-705.46,0.000302,2]
[326745128,1715297454918,-150.0,0.00030206,2]
[326745129,1715297454928,-150.0,0.00030206,2]
[326745130,1715297454938,-3055.51863775,0.00030224,4]
[326745131,1715297454947,-366.72780491,0.00030224,4]
[326745132,1715297454957,-170.73165719,0.00030225,4]
[326745133,1715297454967,-150.0,0.00030247,2]
[326745134,1715297454977,-328.0,0.00030248,5]
[326745135,1715297454986,-150.0,0.00030249,2]
[326745136,1715297454996,-150.0,0.00030284,2]
[326745137,1715297455007,-150.0,0.00030286,2]
[326745138,1715297455020,-200.0,0.00030288,2]
[326745139,1715297455030,-1000.0,0.00030288,10]
[326745140,1715297455039,-500.0,0.00030288,2]
[326745141,1715297455050,-200.0,0.00030288,2]
[326745142,1715297455060,-157.051007,0.00030298,30]
[326745143,1715297455070,-150.0,0.00030298,2]
[326745144,1715297455079,-150.0,0.00030319,2]
[326745145,1715297455092,-150.0,0.00030341,2]
[326745146,1715297455101,-150.0,0.00030345,2]
[326745147,1715297455111,-150.0,0.00030367,2]
[326745148,1715297455120,-150.0,0.00030375,2]
[326745149,1715297455130,-150.0,0.0003038,2]
[326745150,1715297455139,-1965.02816181,0.00030385,2]
[326745151,1715297455148,-158.4501763,0.00030391,30]
[326745152,1715297455157,-150.0,0.00030391,7]
[326745153,1715297455166,-1000.0,0.00030391,2]
[326745154,1715297455175,-6000.0,0.00030391,2]
[326745155,1715297455184,-152.45972776,0.00030391,2]
[326745156,1715297455193,-150.0,0.00030391,2]
[326745157,1715297455202,-229.2,0.00030391,2]
[326745158,1715297455210,-1000.0,0.00030391,2]
[326745159,1715297455219,-1000.0,0.00030391,2]
[326745160,1715297455228,-1000.0,0.00030391,2]
[326745161,1715297455237,-1000.0,0.00030391,2]
[326745162,1715297455246,-1000.0,0.00030391,2]
[326745163,1715297455254,-1000.0,0.00030391,2]
[326745164,1715297455264,-1000.0,0.00030391,2]
[326745165,1715297455274,-1000.0,0.00030391,2]
[326745166,1715297455283,-1000.0,0.00030391,2]
[326745167,1715297455291,-1000.0,0.00030391,2]
[326745168,1715297455300,-1000.0,0.00030391,2]
[326745169,1715297455309,-1000.0,0.00030391,2]
[326745170,1715297455318,-1000.0,0.00030391,2]
[326745171,1715297455328,-1000.0,0.00030391,2]
[326745172,1715297455337,-1000.0,0.00030391,2]
[326745173,1715297455347,-1000.0,0.00030391,2]
[326745174,1715297455357,-586.84229621,0.00030391,60]
[326745175,1715297455367,-150.0,0.00030395,15]
[326745176,1715297455377,-150.0,0.00030399,2]
[326745177,1715297455387,-1500.0,0.000304,2]
[326745178,1715297455397,-150.0,0.00030401,2]
[326745179,1715297455406,-159.80777229,0.00030408,2]
[326745180,1715297455416,-4435.31,0.00030409,4]
[326745181,1715297455426,-4435.31,0.00030409,4]
[326745182,1715297455435,-4435.31,0.00030409,4]
[326745183,1715297455444,-4435.31,0.00030409,4]
[326745184,1715297455454,-203.29973538,0.0003041,5]
[326745185,1715297455464,-500.0,0.0003041,5]
[326745186,1715297455474,-716.53,0.0003041,5]
[326745187,1715297455483,-500.0,0.0003041,5]
[326745188,1715297455493,-151.717903,0.0003041,7]
[326745189,1715297455504,-500.0,0.0003041,5]
[326745190,1715297455517,-789.71,0.0003041,5]
[326745191,1715297455527,-500.0,0.0003041,2]
[326745192,1715297455536,-500.0,0.0003041,5]
[326745193,1715297455545,-500.0,0.0003041,5]
[326745194,1715297455554,-994.1,0.0003041,5]
[326745195,1715297455563,-500.0,0.0003041,5]
[326745196,1715297455574,-804.46,0.0003041,5]
[326745197,1715297455583,-500.0,0.0003041,5]
[326745198,1715297455593,-500.0,0.0003041,5]
[326745199,1715297455603,-580.48,0.0003041,5]
[326745200,1715297455613,-500.0,0.0003041,5]